bitfinex-derivatives/quotes_ETHF0:USTF0_20240910
["timestamp","ask_amount","ask_price","bid_price","bid_amount"]
[1725991160876,0.81769,2351.8,2351.6,0.42522]
[1725991161180,0.3925,2351.8,2351.6,0.42522]
[1725991161883,0.81769,2351.8,2351.6,0.42522]
[1725991163280,52.9512,2351.9,2351.4,1.11452766]
[1725991163281,48.8557,2351.9,2351.8,0.42518]
[1725991163485,48.8557,2351.9,2351.8,1.08989914]
[1725991163978,48.8557,2351.9,2351.8,0.42518]
[1725991164181,48.8557,2351.9,2351.8,1.08984723]
[1725991164380,48.8557,2351.9,2351.8,1.53970766]
[1725991164577,48.8557,2351.9,2351.8,1.08983262]
[1725991164780,48.8557,2351.9,2351.8,0.42518]
[1725991165382,48.8557,2351.9,2351.8,7.96468892]
[1725991165577,48.8557,2351.9,2351.8,6.85016126]
[1725991165773,48.8557,2351.9,2351.8,7.84104644]
[1725991166173,48.8557,2351.9,2351.8,8.5056681]
[1725991166371,48.8557,2351.9,2351.8,7.96328283]
[1725991166575,48.8557,2351.9,2351.8,6.85013679]
[1725991166775,48.8557,2351.9,2351.8,7.9632748]
[1725991167385,48.8557,2351.9,2351.8,7.96307899]
[1725991168483,48.8557,2351.9,2351.8,6.45474386]
[1725991168883,48.8557,2351.9,2351.8,1.77756386]
[1725991168884,52.1757,2351.9,2351.8,1.77756386]
[1725991169090,52.60086,2351.9,2351.7,1.5381322]
[1725991169283,1.1632,2351.8,2351.7,0.42519]
[1725991169487,1.1632,2351.8,2351.7,1.08988031]
[1725991169680,1.1632,2351.8,2351.7,2.20281895]
[1725991169986,1.1632,2351.8,2351.7,1.08987675]
[1725991170283,2.6932,2351.8,2351.7,2.20281895]
[1725991170488,2.6932,2351.8,2351.7,1.08987675]
[1725991170689,2.6932,2351.8,2351.7,2.20281895]
[1725991170991,3.11838,2351.8,2351.7,2.15337801]
[1725991171283,3.11838,2351.8,2351.7,1.08988675]
[1725991171488,2.6932,2351.8,2351.7,0.66468675]
[1725991171690,3.11838,2351.8,2351.7,1.08988675]
[1725991171881,2.6932,2351.8,2351.7,1.08988675]
[1725991172493,1.1632,2351.8,2351.7,0.4252]
[1725991172680,49.28088,2351.9,2351.7,0.4252]
[1725991172681,48.8557,2351.9,2351.8,0.42518]
[1725991172988,50.3857,2351.9,2351.8,1.7778463]
[1725991173291,50.3857,2351.9,2351.8,1.08989221]
[1725991174178,55.06286,2351.9,2351.8,0.66471221]
[1725991174487,55.06286,2351.9,2351.6,0.42521]
[1725991174488,55.06287,2351.9,2351.6,0.42521]
[1725991174690,0.42518,2351.8,2351.5,0.42522]
[1725991174989,0.7698,2351.7,2351.6,0.42522]
[1725991176893,0.7698,2351.7,2351.6,1.08994245]
[1725991177682,0.7698,2351.7,2351.6,2.15346086]
[1725991178092,0.7698,2351.7,2351.6,2.67192396]
[1725991178487,0.3819,2351.8,2351.7,0.4252]
[1725991178685,0.7863,2351.8,2351.7,1.08990287]
[1725991178993,0.3819,2351.8,2351.7,1.08990287]
[1725991179291,0.3819,2351.8,2351.7,1.45990287]
[1725991179684,48.8557,2351.9,2351.8,0.42518]
[1725991179886,48.8557,2351.9,2351.8,1.08988287]
[1725991180087,48.8557,2351.9,2351.8,1.45768287]
[1725991180486,48.8557,2351.9,2351.8,6.77310624]
[1725991180692,48.8557,2351.9,2351.8,9.39094018]
[1725991181889,48.8557,2351.9,2351.8,7.66281394]
[1725991182085,48.8557,2351.9,2351.8,7.8861852]
[1725991182394,48.8557,2351.9,2351.8,9.39080213]
[1725991182584,48.8557,2351.9,2351.8,9.39070515]
[1725991182988,48.8557,2351.9,2351.8,9.90913078]
[1725991183193,48.8557,2351.9,2351.8,9.90904834]
[1725991183394,48.8557,2351.9,2351.8,9.39062143]
[1725991183593,48.8557,2351.9,2351.8,9.3905645]
[1725991183994,48.8557,2351.9,2351.8,9.39056992]
[1725991185297,48.8557,2351.9,2351.8,9.3903867]
[1725991185799,48.8557,2351.9,2351.8,9.90881521]
[1725991185998,48.8557,2351.9,2351.8,9.90878388]
[1725991186997,48.8557,2351.9,2351.8,7.88604085]
[1725991187398,48.8557,2351.9,2351.8,6.82262159]
[1725991187901,48.8557,2351.9,2351.8,7.88605302]
[1725991188213,49.2401,2351.9,2351.8,7.88605302]
[1725991188400,51.19526,2351.9,2351.8,0.66464273]
[1725991188696,50.7701,2351.9,2351.7,0.42519]
[1725991189092,50.7701,2351.9,2351.8,0.66468581]
[1725991189296,50.7701,2351.9,2351.8,1.08986581]
[1725991190598,49.2401,2351.9,2351.8,1.08986581]
[1725991192600,49.2401,2351.9,2351.8,1.08982975]
[1725991193401,49.2401,2351.9,2351.8,2.15327703]
[1725991193597,49.2401,2351.9,2351.8,1.08982975]
[1725991194304,49.2401,2351.9,2351.8,2.67170983]
[1725991194505,49.2401,2351.9,2351.8,2.15326944]
[1725991195200,49.2401,2351.9,2351.8,2.67171026]
[1725991195604,49.2401,2351.9,2351.8,3.78470912]
[1725991196297,49.2401,2351.9,2351.8,2.05661968]
[1725991196498,49.2401,2351.9,2351.8,4.77191515]
[1725991196699,49.2401,2351.9,2351.8,3.56226254]
[1725991197099,49.2401,2351.9,2351.8,5.29033039]
[1725991197908,49.2401,2351.9,2351.8,5.83286284]
[1725991198902,49.2401,2351.9,2351.8,7.94640744]
[1725991200507,49.2401,2351.9,2351.8,6.61772779]
[1725991201002,49.2401,2351.9,2351.8,4.96219648]
[1725991201408,49.2401,2351.9,2351.8,6.63367429]
[1725991201608,49.2401,2351.9,2351.8,5.84937429]
[1725991202301,49.2401,2351.9,2351.8,11.02285648]
[1725991202500,48.8557,2351.9,2351.8,17.92342797]
[1725991202703,48.8557,2351.9,2351.8,16.56440392]
[1725991202907,48.8557,2351.9,2351.8,18.79313308]
[1725991203105,47.8802,2351.9,2351.8,19.85609308]
[1725991203415,42.92687134,2351.9,2351.8,28.44369688]
[1725991203607,39.97712423,2351.9,2351.8,31.72642745]
[1725991203799,37.46352423,2351.9,2351.8,40.94369688]
[1725991203997,34.97168423,2351.9,2351.8,43.31736086]
[1725991204204,33.69546423,2351.9,2351.8,44.14670156]
[1725991204403,33.69546423,2351.9,2351.8,40.39005768]
[1725991204608,33.69546423,2351.9,2351.8,26.43614265]
[1725991204812,33.69546423,2351.9,2351.8,31.41471175]
[1725991205000,33.69546423,2351.9,2351.8,28.63066386]
[1725991205201,33.69546423,2351.9,2351.8,30.19364689]
[1725991205400,33.69546423,2351.9,2351.8,20.49421434]
[1725991205599,33.69546423,2351.9,2351.8,19.66487364]
[1725991205806,33.69546423,2351.9,2351.8,19.34813792]
[1725991206016,33.69546423,2351.9,2351.8,19.89307097]
[1725991206207,33.69546423,2351.9,2351.8,24.97453203]
[1725991206410,33.69546423,2351.9,2351.8,26.76453203]
[1725991206599,33.69546423,2351.9,2351.8,34.99203627]
[1725991207113,33.69546423,2351.9,2351.8,37.97964762]
[1725991207318,33.69546423,2351.9,2351.8,39.04260762]
[1725991208214,33.69546423,2351.9,2351.8,36.05499627]
[1725991208511,33.69546423,2351.9,2351.8,37.97972778]
[1725991208813,33.69546423,2351.9,2351.8,37.9793135]
[1725991209008,33.69546423,2351.9,2351.8,38.64393605]
[1725991209210,33.69546423,2351.9,2351.8,35.65624732]
[1725991209513,33.69546423,2351.9,2351.8,29.65624732]
[1725991209812,33.69546423,2351.9,2351.8,38.64390589]
[1725991210115,33.69546423,2351.9,2351.8,39.70686589]
[1725991210311,33.69546423,2351.9,2351.8,36.8147391]
[1725991211213,33.69546423,2351.9,2351.8,36.29626574]
[1725991211409,33.69546423,2351.9,2351.8,40.26296411]
[1725991211613,33.69546423,2351.9,2351.8,33.19991694]
[1725991212008,33.69546423,2351.9,2351.8,29.75168952]
[1725991212811,33.69546423,2351.9,2351.8,33.19991694]
[1725991213016,33.69546423,2351.9,2351.8,40.26287694]
[1725991213720,33.69546423,2351.9,2351.8,40.26125766]
[1725991214219,33.69546423,2351.9,2351.8,36.81303024]
[1725991214914,33.69546423,2351.9,2351.8,39.19763584]
[1725991215115,33.69546423,2351.9,2351.8,40.26059584]
[1725991215519,33.69546423,2351.9,2351.8,36.81303024]
[1725991215719,33.69546423,2351.9,2351.8,33.75582148]
[1725991215912,33.69546423,2351.9,2351.8,35.46484966]
[1725991216320,33.69546423,2351.9,2351.8,36.81263938]
[1725991216723,33.69546423,2351.9,2351.8,42.65111702]
[1725991216908,31.54684423,2351.9,2351.8,45.93384759]
[1725991217113,29.38057423,2351.9,2351.8,46.40777589]
[1725991217320,25.53475761,2351.9,2351.8,43.12504532]
[1725991218021,25.53475761,2351.9,2351.8,48.58883699]
[1725991218022,10.58552761,2351.9,2351.8,48.58883699]
[1725991218221,0.42495,2353.1,2352.8,0.42498]
[1725991218415,1.169,2353.0,2352.9,0.66452739]
[1725991218610,1.59396,2353.0,2352.9,0.66452739]
[1725991218921,1.59396,2353.0,2352.7,4.85711084]
[1725991219124,0.42498,2352.9,2352.8,1.11210084]
[1725991219319,1.169,2353.0,2352.8,1.11210084]
[1725991219320,4.489,2353.0,2352.8,1.06294848]
[1725991219621,0.425,2352.8,2352.7,12.5]
[1725991219817,0.425,2352.8,2352.7,13.16438189]
[1725991220212,0.425,2352.8,2352.7,12.5]
[1725991220414,1.48751,2352.8,2352.7,12.5]
[1725991220613,0.425,2352.8,2352.7,12.5]
[1725991221425,0.42503,2352.7,2352.5,1.11210084]
[1725991221723,0.7784,2352.6,2352.4,1.53716084]
[1725991222020,1.20344,2352.6,2352.5,13.16442845]
[1725991222221,1.20344,2352.6,2352.5,12.5]
[1725991222422,0.42507,2352.4,2352.2,1.11210084]
[1725991222626,0.3879,2352.3,2352.2,1.11210084]
[1725991222821,0.3879,2352.3,2352.2,13.43721084]
[1725991223019,0.3879,2352.3,2352.2,13.01210084]
[1725991223219,0.3879,2352.3,2352.2,13.43721084]
[1725991223625,0.3879,2352.3,2352.2,15.01878156]
[1725991223826,0.3879,2352.3,2352.2,17.05763928]
[1725991225822,0.3879,2352.3,2352.2,15.99443682]
[1725991226024,0.3879,2352.3,2352.2,16.53923106]
[1725991226233,0.3879,2352.3,2352.2,15.93424757]
[1725991226525,0.3879,2352.3,2352.2,16.02749384]
[1725991226732,0.3879,2352.3,2352.2,17.56451291]
[1725991228137,0.3879,2352.3,2352.2,16.50135041]
[1725991228327,0.3879,2352.3,2352.2,15.38944134]
[1725991228629,0.3879,2352.3,2352.2,17.0575926]
[1725991229230,0.3879,2352.3,2352.2,15.47606856]
[1725991229437,0.3879,2352.3,2352.2,16.53922428]
[1725991229733,0.3879,2352.3,2352.2,17.05757852]
[1725991231440,0.3879,2352.3,2352.2,15.38942726]
[1725991231833,0.3879,2352.3,2352.2,17.05757852]
[1725991232139,1.20344,2352.6,2352.4,0.42507]
[1725991232327,0.38,2352.5,2352.4,1.53686196]
[1725991232647,11.23253996,2354.0,2352.5,1.06264]
[1725991232829,0.3679,2353.3,2353.0,1.53]
[1725991233138,0.3679,2353.3,2353.2,0.42493]
[1725991233337,0.3679,2353.3,2353.2,1.95493]
[1725991233536,0.3679,2353.3,2353.2,13.85493]
[1725991234333,0.3679,2353.3,2353.2,14.51914572]
[1725991234740,0.79281,2353.3,2353.2,11.9]
[1725991234928,6.57241,2353.3,2353.2,11.9]
[1725991235941,12.57241,2353.3,2353.2,11.9]
[1725991236237,14.99978,2353.3,2352.7,1.11164754]
[1725991236434,0.42494,2353.2,2352.9,0.42498]
[1725991236740,0.3679,2353.3,2353.0,0.42495]
[1725991236937,0.79282,2353.3,2353.0,0.42495]
[1725991237140,0.3679,2353.3,2353.2,0.42493]
[1725991238333,0.38,2353.5,2353.2,7.9445]
[1725991238535,0.403,2353.7,2353.5,0.42486]
[1725991238738,0.403,2353.7,2353.4,3.32]
[1725991239040,0.403,2353.7,2353.5,0.42487]
[1725991239231,0.403,2353.7,2353.6,0.42485]
[1725991239836,0.3762,2353.8,2353.7,0.42484]
[1725991240545,0.3762,2353.8,2353.6,1.20864]
[1725991241044,0.3762,2353.8,2353.6,0.7838]
[1725991241244,3.6962,2353.8,2353.4,0.42488]
[1725991241539,3.6962,2353.8,2353.2,4.1038]
[1725991241540,4.12103,2353.8,2353.2,4.1038]
[1725991241946,0.3762,2353.8,2353.5,0.42487]
[1725991242136,0.80103,2353.8,2353.5,0.42487]
[1725991242742,0.3762,2353.8,2353.3,3.32]
[1725991243043,0.3762,2353.8,2353.6,0.42484]
[1725991243447,0.3762,2353.8,2353.6,0.82284]
[1725991243744,0.3762,2353.8,2353.6,0.398]
[1725991243940,0.3762,2353.8,2353.7,0.42484]
[1725991245641,0.3762,2353.8,2353.6,0.82284]
[1725991245842,0.80103,2353.8,2353.5,0.42486]
[1725991246143,0.3699,2353.7,2353.5,0.42486]
[1725991246339,0.3699,2353.7,2353.3,0.371]
[1725991246845,0.79941,2353.9,2353.6,0.42485]
[1725991246846,0.42481,2353.9,2353.6,0.42485]
[1725991247149,0.42481,2353.9,2353.7,0.371]
[1725991247344,0.7947,2354.0,2353.7,0.79583]
[1725991247652,0.4248,2353.9,2353.7,0.371]
[1725991248852,0.79469,2354.0,2353.7,0.371]
[1725991249043,0.3699,2354.0,2353.7,0.371]
[1725991249346,1.06196,2354.0,2353.5,0.81797]
[1725991249652,1.16221,2353.9,2353.6,0.42485]
[1725991249854,0.7374,2353.9,2353.6,0.42485]
[1725991250152,0.7374,2353.9,2353.7,0.3665]
[1725991250351,0.3675,2353.9,2353.7,0.3665]
[1725991250652,0.3675,2353.9,2353.7,0.79132]
[1725991251153,0.4248,2354.0,2353.8,0.42482]
[1725991251359,0.4248,2354.0,2353.7,0.79133]
[1725991251650,0.4248,2353.9,2353.7,0.79133]
[1725991254049,0.3653,2353.8,2353.2,3.32]
[1725991254256,0.7505,2353.8,2353.4,0.42488]
[1725991254550,0.3808,2353.7,2353.2,4.0863]
[1725991254952,0.42486,2353.6,2353.4,0.42488]
[1725991255151,0.42494,2353.2,2353.0,1.53660754]
[1725991255651,1.06214,2353.6,2353.0,1.11164754]
[1725991256251,1.0622,2353.5,2353.1,0.42493]
[1725991256559,0.42495,2353.1,2353.0,1.11164754]
[1725991257157,5.44835,2353.1,2353.0,1.11164754]
[1725991258147,5.0234,2353.1,2353.0,1.11164754]
[1725991258459,0.3808,2353.1,2353.0,1.53660754]
[1725991258955,0.3808,2353.1,2353.0,1.11164754]
[1725991259859,0.3808,2353.1,2352.9,11.72497]
[1725991260058,0.3808,2353.1,2353.0,0.42496]
[1725991260953,0.3808,2353.1,2352.9,11.72497]
[1725991261358,0.3808,2353.1,2353.0,0.42496]
[1725991261754,0.371,2353.3,2353.0,0.42496]
[1725991261950,0.7563,2353.3,2352.9,11.3]
[1725991262264,0.7563,2353.3,2353.1,0.42494]
[1725991262664,1.06184,2354.3,2353.2,4.2496]
[1725991262956,0.3984,2353.9,2353.4,3.32]
[1725991263355,0.3984,2353.9,2353.6,0.42484]
[1725991263567,0.82406,2354.2,2353.8,0.42482]
[1725991263862,0.82406,2354.2,2353.8,0.42481]
[1725991264061,0.42477,2354.1,2353.7,0.42483]
[1725991265862,0.42477,2354.1,2353.8,0.42482]
[1725991266763,0.42479,2354.0,2353.6,3.74484]
[1725991266976,0.3993,2354.2,2353.7,0.42483]
[1725991267261,0.42479,2354.0,2353.7,0.42483]
[1725991267649,0.42478,2354.1,2353.7,0.42483]
[1725991267855,0.4248,2354.0,2353.4,7.437]
[1725991268051,3.7193,2354.2,2353.8,0.42481]
[1725991268252,0.42478,2354.1,2353.8,0.42481]
[1725991268453,0.42478,2354.0,2353.8,0.42481]
[1725991268861,0.4033,2353.9,2353.8,0.42481]
[1725991269358,0.8281,2353.9,2353.7,0.42483]
[1725991269859,0.4033,2353.9,2353.8,0.42482]
[1725991270267,0.4033,2353.9,2353.4,7.437]
[1725991270462,0.82592,2353.8,2353.6,0.42485]
[1725991270656,0.392,2353.7,2353.6,0.42485]
[1725991271659,0.392,2353.7,2353.4,3.32]
[1725991271660,0.392,2353.7,2353.5,0.42486]
[1725991271857,0.392,2353.7,2353.6,0.42485]
[1725991272967,0.392,2353.7,2353.5,0.42486]
[1725991273268,0.392,2353.7,2353.6,0.42485]
[1725991274856,0.4033,2353.9,2353.8,0.42482]
[1725991275259,0.80507,2354.1,2353.9,0.4248]
[1725991275459,0.42475,2354.2,2353.7,5.57634754]
[1725991275666,0.42475,2354.2,2354.0,0.42477]
[1725991276053,0.42475,2354.2,2354.1,11.3]
[1725991277761,0.3967,2354.4,2354.1,14.62]
[1725991277961,0.3653,2354.6,2354.3,3.32]
[1725991278172,0.81715,2354.8,2354.4,1.0885861]
[1725991278463,0.42466,2354.7,2354.4,1.11164754]
[1725991278670,0.42466,2354.7,2354.3,1.51604754]
[1725991278856,0.42469,2354.5,2354.4,0.66389056]
[1725991279056,3.32,2354.6,2354.1,11.3]
[1725991279057,1.06178,2354.4,2354.1,11.3]
[1725991279259,0.42477,2354.1,2353.8,5.65345754]
[1725991279559,0.42477,2354.1,2353.8,1.53645754]
[1725991279861,0.3852,2354.3,2353.9,11.3]
[1725991280060,0.3755,2354.0,2353.9,11.3]
[1725991280565,0.80028,2354.0,2353.9,11.3]
[1725991281360,5.04828,2354.0,2353.9,11.3]
[1725991282476,5.04828,2354.0,2353.9,12.41164754]
[1725991282971,5.04828,2354.0,2353.9,11.96406623]
[1725991283163,5.04828,2354.0,2353.9,11.3]
[1725991283565,5.04828,2354.0,2353.9,12.41164754]
[1725991284370,4.6235,2354.0,2353.9,12.83644754]
[1725991284568,5.04828,2354.0,2353.9,14.56632024]
[1725991284962,4.6235,2354.0,2353.9,14.99112024]
[1725991285272,0.42478,2354.0,2353.9,15.12214402]
[1725991285464,0.81938,2354.0,2353.9,12.41264265]
[1725991285967,0.81938,2354.0,2353.9,11.3]
[1725991286369,5.70456,2354.0,2353.8,1.66747132]
[1725991286665,1.85833,2353.9,2353.8,1.11268379]
[1725991286981,1.85833,2353.9,2353.7,1.66747132]
[1725991286982,0.42482,2353.8,2353.7,12.41268379]
[1725991287176,0.80612,2353.8,2353.7,13.07681294]
[1725991287468,0.80612,2353.8,2353.7,14.56760234]
[1725991287767,0.80612,2353.8,2353.7,13.07681294]
[1725991288071,0.79631,2353.9,2353.7,15.54721835]
[1725991288274,0.42481,2353.9,2353.8,1.53752999]
[1725991288474,0.42481,2353.9,2353.8,1.51240999]
[1725991288970,0.42481,2353.9,2353.8,2.17649893]
[1725991289179,0.81939,2354.0,2353.8,1.93720999]
[1725991289473,6.22519,2354.9,2354.1,0.42475]
[1725991289474,3.32,2354.5,2354.1,0.42475]
[1725991289671,0.42474,2354.3,2354.1,0.42475]
[1725991290170,0.42474,2354.3,2354.1,1.53736448]
[1725991290570,0.4049,2354.4,2354.2,0.42474]
[1725991290776,0.82962,2354.4,2354.2,1.53734448]
[1725991290975,0.82962,2354.4,2354.2,1.93324448]
[1725991291280,0.7883,2354.8,2354.2,1.50850448]
[1725991291575,16.00765656,2355.8,2354.4,1.11260448]
[1725991291576,1.0615,2355.1,2354.4,1.11260448]
[1725991291776,0.42465,2354.8,2354.6,0.42467]
[1725991291972,0.42465,2354.8,2354.6,0.82057]
[1725991292181,0.3903,2355.0,2354.6,0.82057]
[1725991292182,0.42463,2354.9,2354.6,0.82057]
[1725991292366,0.42463,2354.9,2354.6,1.93317448]
[1725991292569,0.42464,2354.8,2354.6,0.3959]
[1725991292773,0.42466,2354.7,2354.5,1.11260448]
[1725991292977,0.42466,2354.7,2354.4,2.09216132]
[1725991292978,0.3903,2354.6,2354.4,1.53729448]
[1725991293179,0.3903,2354.6,2354.5,0.42469]
[1725991293780,0.3903,2354.6,2354.4,1.53730448]
[1725991293974,0.3903,2354.6,2354.4,0.4247]
[1725991294175,0.3903,2354.6,2354.5,0.42469]
[1725991294869,0.42465,2354.8,2354.6,0.42467]
[1725991295276,0.42465,2354.8,2354.4,1.11260448]
[1725991295581,0.42465,2354.8,2354.6,0.42467]
[1725991295776,0.42468,2354.6,2354.4,1.53730448]
[1725991295971,1.06156,2354.9,2354.3,1.11260448]
[1725991295972,0.405,2354.7,2354.3,1.11260448]
[1725991296272,0.42468,2354.6,2354.4,0.4247]
[1725991297479,0.42469,2354.5,2354.4,0.42471]
[1725991297679,0.42468,2354.6,2354.4,0.42471]
[1725991298783,0.405,2354.7,2354.2,1.50850448]
[1725991298992,0.4247,2354.5,2354.3,1.11260448]
[1725991299688,0.42469,2354.6,2354.5,0.42469]
[1725991299883,0.82967,2354.7,2354.5,0.42469]
[1725991300480,0.42467,2354.6,2354.5,0.42469]
[1725991301095,0.7584,2355.1,2354.5,7.5672]
[1725991301391,0.42463,2354.9,2354.8,0.42464]
[1725991301695,0.42462,2355.0,2354.8,0.42464]
[1725991301991,0.42461,2355.0,2354.8,0.42463]
[1725991302685,0.42462,2354.9,2354.7,0.42464]
[1725991302892,0.7584,2355.1,2354.6,2.25120448]
[1725991303088,0.42466,2354.7,2354.6,1.11260448]
[1725991303393,4.38153,2355.0,2354.4,1.11260448]
[1725991303580,0.42464,2354.8,2354.5,12.41260448]
[1725991303780,1.06151,2355.0,2354.5,12.83728448]
[1725991303982,0.42466,2354.7,2354.6,0.66383095]
[1725991304284,1.06158,2354.9,2354.5,12.41260448]
[1725991304285,1.0616,2354.8,2354.5,11.3]
[1725991304486,1.4625,2354.8,2354.5,11.3]
[1725991304690,0.42467,2354.6,2354.5,11.3]
[1725991304986,1.4625,2354.8,2354.5,12.3885884]
[1725991304987,0.81797,2354.7,2354.5,12.3885884]
[1725991305291,0.82554,2354.8,2354.6,0.66388319]
[1725991305493,0.82554,2354.8,2354.7,1.44868319]
[1725991305494,0.42464,2354.8,2354.7,1.44868319]
[1725991305987,0.42464,2354.9,2354.7,1.87333319]
[1725991306185,0.4009,2355.0,2354.8,0.42464]
[1725991306391,0.42462,2355.0,2354.8,0.42462]
[1725991306893,0.42462,2355.0,2354.8,0.42463]
[1725991307090,0.42462,2355.0,2354.7,2.26630448]
[1725991307300,0.4246,2355.0,2354.9,0.42462]
[1725991307501,0.4246,2355.0,2354.9,1.08840217]
[1725991307805,0.4246,2355.0,2354.9,1.0883924]
[1725991308000,0.42462,2354.9,2354.8,1.11260448]
[1725991308202,0.42462,2354.9,2354.8,1.77639391]
[1725991308597,0.42462,2354.9,2354.8,0.66378943]
[1725991308793,0.42462,2354.9,2354.8,1.77640869]
[1725991309103,0.42462,2354.9,2354.8,2.20104869]
[1725991309895,0.42462,2354.9,2354.8,1.08844421]
[1725991310799,0.42461,2355.0,2354.9,0.42461]
[1725991310999,0.3933,2355.1,2354.8,1.53723448]
[1725991311000,0.42462,2354.9,2354.8,1.53723448]
[1725991311195,0.42462,2354.9,2354.8,2.20102806]
[1725991312206,1.06156,2354.9,2354.6,1.53727448]
[1725991312401,0.42466,2354.7,2354.6,2.69837448]
[1725991312701,0.42466,2354.7,2354.6,3.36222723]
[1725991313089,0.42465,2354.8,2354.7,0.42466]
[1725991313295,0.3933,2355.1,2354.7,5.09645723]
[1725991313503,0.81789,2355.1,2355.0,0.4246]
[1725991313894,0.32848103,2355.5,2355.0,4.75796448]
[1725991314096,0.42452,2355.5,2355.2,0.42455]
[1725991314297,0.42452,2355.5,2355.1,1.05066448]
[1725991314298,0.42456,2355.3,2355.1,1.49950448]
[1725991314504,0.42456,2355.3,2355.2,0.66370248]
[1725991315002,0.42455,2355.3,2355.2,1.77630696]
[1725991315305,0.42455,2355.3,2355.2,0.66370248]
[1725991315500,0.42457,2355.2,2355.0,0.7742]
[1725991315707,0.42457,2355.2,2355.1,0.66373207]
[1725991315892,0.42456,2355.3,2355.1,0.66373207]
[1725991316099,0.42456,2355.3,2355.2,0.66373207]
[1725991316294,1.1516,2355.6,2355.2,0.66373207]
[1725991316607,0.42453,2355.4,2355.3,0.66373207]
[1725991316910,0.42453,2355.4,2355.3,0.66368232]
[1725991318804,1.1516,2355.6,2355.3,0.66368232]
[1725991319007,0.42451,2355.6,2355.3,0.42454]
[1725991319199,0.42451,2355.6,2355.4,1.20543]
[1725991319397,0.42451,2355.6,2355.4,0.7809]
[1725991319599,0.4245,2355.6,2355.4,1.20543]
[1725991319800,0.3658,2355.8,2355.6,0.42448]
[1725991320007,1.06105,2356.1,2355.8,0.42446]
[1725991320008,0.42443,2356.0,2355.8,0.42446]
[1725991320202,0.42443,2356.0,2355.8,11.6905]
[1725991320512,1.06816751,2356.1,2355.8,12.0809]
[1725991320804,0.42442,2356.0,2355.8,12.0809]
[1725991321006,1.06816751,2356.1,2356.0,0.42442]
[1725991321007,0.32986751,2356.1,2356.0,0.42442]
[1725991321210,0.7681,2356.5,2356.0,0.66346397]
[1725991321412,0.7681,2356.5,2356.0,0.3938]
[1725991321413,2.20117,2356.5,2356.0,0.3938]
[1725991321611,1.06088,2356.4,2355.8,12.0809]
[1725991321806,0.42444,2355.9,2355.8,11.3]
[1725991322011,3.32,2355.9,2355.3,1.53713448]
[1725991322209,3.32,2355.9,2355.2,2.30400448]
[1725991322210,0.7681,2355.8,2355.2,2.30400448]
[1725991322414,0.42455,2355.3,2355.2,1.1914]
[1725991322709,3.32,2355.5,2354.9,1.11260448]
[1725991322910,0.42455,2355.3,2355.0,11.3]
[1725991323115,0.42455,2355.3,2355.1,0.3985]
[1725991323305,0.42454,2355.4,2355.1,0.82307]
[1725991323610,0.42456,2355.3,2355.2,1.11260448]
[1725991324108,3.32,2355.6,2355.2,1.11260448]
[1725991324316,0.42455,2355.3,2355.2,1.11260448]
[1725991324617,3.32,2355.6,2355.2,1.11260448]
[1725991324810,1.47667427,2355.8,2355.3,1.11260448]
[1725991325009,1.47667427,2355.8,2355.4,0.3968]
[1725991325209,0.42451,2355.5,2355.4,0.3968]
[1725991325709,3.32,2355.7,2355.4,0.3968]
[1725991325710,1.47667427,2355.8,2355.4,0.3968]
[1725991325915,1.47667427,2355.8,2355.4,1.50940448]
[1725991325916,0.4245,2355.6,2355.4,1.50940448]
[1725991326216,0.42455,2355.3,2355.2,1.11260448]
[1725991326517,0.42455,2355.3,2355.1,1.90490448]
[1725991326911,0.42458,2355.1,2355.0,12.41260448]
[1725991327115,0.42458,2355.1,2355.0,11.3]
[1725991328313,0.42464,2354.8,2354.7,0.3968]
[1725991328714,0.42464,2354.8,2354.7,12.80940448]
[1725991329011,0.42464,2354.8,2354.7,11.6968]
[1725991329214,0.3989,2354.9,2354.7,13.47322441]
[1725991329413,0.3989,2354.9,2354.7,11.6968]
[1725991329603,0.42464,2354.8,2354.7,11.6968]
[1725991330009,0.42464,2354.8,2354.7,11.3]
[1725991331021,1.48631,2354.7,2354.6,1.11260448]
[1725991331320,0.42473,2354.3,2354.2,1.11260448]
[1725991331514,1.06174,2354.5,2354.0,1.11260448]
[1725991331515,4.38174,2354.5,2354.0,1.11260448]
[1725991331814,4.38174,2354.5,2353.8,0.7579]
[1725991331815,0.42478,2354.0,2353.8,0.7579]
[1725991332121,0.42478,2354.0,2353.9,13.07422631]
[1725991332306,0.42478,2354.1,2353.9,11.96401568]
[1725991332624,0.42476,2354.1,2354.0,1.77428065]
[1725991332811,0.42476,2354.1,2354.0,1.11026736]
[1725991333319,3.32,2354.2,2354.0,1.11026736]
[1725991333520,0.42478,2354.1,2354.0,1.11026736]
[1725991333710,0.42478,2354.1,2354.0,1.77449605]
[1725991334012,0.42475,2354.2,2354.0,6.44725801]
[1725991334216,0.42475,2354.2,2354.0,1.53525629]
[1725991334420,0.42475,2354.2,2354.1,1.11047629]
[1725991334814,0.42476,2354.2,2354.0,1.53525629]
[1725991335017,0.42475,2354.2,2354.1,1.11047629]
[1725991335218,0.42475,2354.2,2354.1,1.77449652]
[1725991335418,0.42474,2354.3,2354.1,2.57690798]
[1725991335621,0.42474,2354.3,2354.2,1.48562443]
[1725991335827,0.42474,2354.3,2354.2,0.3748]
[1725991336024,0.7605,2354.6,2354.2,6.39760337]
[1725991336225,3.32,2354.8,2354.3,2.14889889]
[1725991336523,0.42467,2354.7,2354.4,1.53547677]
[1725991336829,0.42467,2354.7,2354.3,0.7755]
[1725991336830,0.42465,2354.8,2354.5,0.42469]
[1725991337019,0.42465,2354.8,2354.3,1.88627677]
[1725991337020,0.42466,2354.7,2354.6,0.3879]
[1725991337225,0.42468,2354.6,2354.4,1.11077677]
[1725991337526,0.42469,2354.5,2354.4,1.11077677]
[1725991337827,0.42468,2354.6,2354.4,1.11077677]
[1725991338128,0.42467,2354.7,2354.4,1.11077677]